bitfinex-derivatives/quotes_SOLF0:USTF0_20250720
["timestamp","ask_amount","ask_price","bid_price","bid_amount"]
[1753038120487,5.469,182.77,182.76,5.80070971]
[1753038120687,3.03,182.83,182.77,3.07]
[1753038120892,3.03,182.82,182.79,3.07]
[1753038121092,3.03,182.82,182.78,2.68070971]
[1753038121288,3.03,182.82,182.79,3.07]
[1753038121494,3.03,182.81,182.8,3.07]
[1753038122088,8.4977,182.81,182.8,3.07]
[1753038122692,5.4677,182.81,182.8,3.07]
[1753038122890,5.4677,182.81,182.8,5.75070971]
[1753038123192,3.03,182.85,182.81,3.07]
[1753038124291,3.03,182.83,182.78,2.68070971]
[1753038124493,3.03,182.82,182.8,3.07]
[1753038124693,5.4677,182.81,182.8,3.07]
[1753038127898,5.4677,182.81,182.8,5.75070971]
[1753038128695,3.03,182.86,182.82,3.07]
[1753038129195,5.4671,182.83,182.82,3.07]
[1753038129392,3.03,182.83,182.79,2.68070971]
[1753038129789,5.4677,182.81,182.8,3.07]
[1753038130393,5.4675,182.82,182.8,3.07]
[1753038130590,3.03,182.86,182.81,2.68070971]
[1753038130891,3.03,182.85,182.83,3.07]
[1753038131092,5.4671,182.83,182.82,3.07]
[1753038133097,3.63273893,182.89,182.54,1575.64]
[1753038133098,3.03,182.82,182.76,3.07]
[1753038133397,5.4689,182.77,182.76,3.07]
[1753038134099,5.4687,182.78,182.77,3.07]
[1753038134901,2.68070971,182.83,182.77,3.07]
[1753038135198,2.68070971,182.83,182.67,10.9435]
[1753038135199,2.68070971,182.79,182.72,5.75070971]
[1753038135396,5.4701,182.73,182.72,5.75070971]
[1753038135598,2.68070971,182.79,182.69,3.07]
[1753038135796,3.03,182.76,182.68,3.07]
[1753038135995,3.03,182.74,182.68,2.68070971]
[1753038136197,3.03,182.77,182.7,2.68070971]
[1753038136405,3.03,182.77,182.71,3.07]
[1753038136895,5.47,182.74,182.71,3.07]
[1753038137091,5.47,182.74,182.73,3.07]
[1753038137399,3.03,182.74,182.72,3.07]
[1753038138100,5.4701,182.73,182.72,3.07]
[1753038138289,3.03,182.74,182.72,3.07]
[1753038138598,5.4695,182.76,182.71,3.07]
[1753038138794,3.03,182.76,182.71,3.07]
[1753038138991,3.03,182.75,182.71,5.4706]
[1753038139200,3.03,182.75,182.73,3.07]
[1753038139800,8.4997,182.75,182.73,3.07]
[1753038141892,5.4698,182.74,182.73,3.07]
[1753038142097,5.4698,182.74,182.73,5.57028232]
[1753038142701,8.4996,182.75,182.73,5.57028232]
[1753038142899,5.4696,182.75,182.74,5.57028232]
[1753038143293,5.4693,182.76,182.75,3.07]
[1753038143498,5.4693,182.76,182.75,9.84415457]
[1753038143692,5.4693,182.76,182.75,5.57028232]
[1753038144103,5.4693,182.76,182.75,7.35067111]
[1753038144398,5.469,182.77,182.75,9.86126513]
[1753038144605,5.469,182.77,182.76,9.86126513]
[1753038145301,2.68070971,182.84,182.77,3.07]
[1753038145505,3.03,182.83,182.78,6.79126513]
[1753038145703,11.17870971,182.8,182.79,9.402e-05]
[1753038146299,11.17870971,182.8,182.73,3.07]
[1753038146300,5.4698,182.74,182.73,3.07]
[1753038147405,3.03,182.72,182.69,4.49364503]
[1753038147605,3.03,182.73,182.68,7.56364503]
[1753038148105,5.4713,182.69,182.68,3.07]
[1753038148305,3.02,182.71,182.67,4.49364503]
[1753038148507,3.02,182.71,182.69,3.12]
[1753038149312,5.4713,182.7,182.69,3.12]
[1753038150105,3.02,182.73,182.68,2.68070971]
[1753038150305,3.02,182.75,182.71,3.12]
[1753038150711,5.4703,182.73,182.71,3.12]
[1753038151109,3.02,182.75,182.71,3.12]
[1753038151314,5.4703,182.73,182.72,3.12]
[1753038152309,5.4709,182.71,182.7,3.12]
[1753038152713,5.4716,182.68,182.67,3.12]
[1753038154016,3.02,182.72,182.68,3.12]
[1753038154209,3.02,182.74,182.69,3.12]
[1753038154812,3.02,182.76,182.69,3.12]
[1753038155216,5.47,182.74,182.71,3.12]
[1753038156702,5.4701,182.73,182.71,3.12]
[1753038157412,3.02,182.71,182.69,3.12]
[1753038157714,5.70070971,182.73,182.67,3.12]
[1753038157903,3.02,182.73,182.67,3.12]
[1753038158110,5.471,182.71,182.67,3.12]
[1753038158510,3.02,182.73,182.68,2.35329535]
[1753038158707,3.02,182.7,182.68,3.12]
[1753038158911,3.02,182.74,182.67,3.12]
[1753038159115,3.02,182.74,182.68,2.35227937]
[1753038159315,3.02,182.74,182.67,3.12]
[1753038159616,3.02,182.69,182.67,3.12]
[1753038160013,3.02,182.74,182.67,3.12]
[1753038160414,5.4714,182.69,182.67,3.12]
[1753038160608,5.4714,182.69,182.68,3.12]
[1753038160814,3.02,182.69,182.67,3.12]
[1753038161018,5.4718,182.68,182.66,2.68070971]
[1753038161314,2.68070971,182.75,182.66,2.68070971]
[1753038161315,3.02,182.72,182.66,2.68070971]
[1753038161510,3.02,182.74,182.66,2.68070971]
[1753038161708,5.4713,182.7,182.67,3.12]
[1753038161914,3.02,182.73,182.67,3.12]
[1753038162510,2.68070971,182.79,182.64,127.96710585]
[1753038162511,3.02,182.7,182.64,127.96710585]
[1753038162921,5.4723,182.66,182.65,3.12]
[1753038165416,3.02,182.64,182.62,3.12]
[1753038165624,3.02,182.66,182.6,3.12]
[1753038166316,3.02,182.66,182.6,5.80070971]
[1753038166514,3.02,182.66,182.61,3.12]
[1753038167219,2.68070971,182.69,182.61,3.12]
[1753038167220,3.02,182.65,182.61,3.12]
[1753038167612,3.02,182.65,182.62,3.12]
[1753038167811,5.4733,182.63,182.6,2.68070971]
[1753038168119,3.02,182.65,182.6,2.68070971]
[1753038168317,5.4734,182.63,182.6,2.68070971]
[1753038168523,5.4734,182.63,182.61,3.12]
[1753038168722,5.4734,182.63,182.62,3.12]
[1753038168923,5.4729,182.64,182.61,3.12]
[1753038169421,3.02,182.67,182.61,3.12]
[1753038170820,5.4728,182.65,182.61,8.5935]
[1753038171022,3.02,182.67,182.62,3.12]
[1753038171221,3.02,182.66,182.62,3.12]
[1753038171421,5.4727,182.65,182.62,3.12]
[1753038171617,3.02,182.68,182.63,3.12]
[1753038171822,3.02,182.67,182.63,3.12]
[1753038172116,5.4727,182.65,182.63,3.12]
[1753038175330,5.4723,182.66,182.63,3.12]
[1753038175824,5.4728,182.65,182.63,3.12]
[1753038176028,3.02,182.66,182.62,2.68070971]
[1753038176217,3.02,182.66,182.64,3.12]
[1753038176420,5.4727,182.65,182.62,2.68070971]
[1753038176621,5.4727,182.65,182.63,2.34005454]
[1753038176823,5.4727,182.65,182.62,2.68070971]
[1753038176824,3.02,182.66,182.62,2.68070971]
[1753038177023,5.4725,182.65,182.64,3.12]
[1753038178734,5.4725,182.65,182.64,5.46430503]
[1753038179023,3.03,182.65,182.63,3.24]
[1753038179229,3.03,182.65,182.64,3.24]
[1753038179425,3.03,182.67,182.62,3.24]
[1753038179626,3.03,182.67,182.63,5.58549416]
[1753038179829,3.03,182.67,182.63,3.24]
[1753038180221,3.03,182.63,182.59,3.24]
[1753038180422,2.68070971,182.6,182.56,3.24]
[1753038180734,5.4757,182.55,182.54,3.24]
[1753038180923,5.4757,182.55,182.54,9.87582775]
[1753038181331,5.4757,182.55,182.54,5.58795722]
[1753038181729,8.5057,182.55,182.54,2.34672433]
[1753038182131,3.03,182.54,182.47,3.24]
[1753038182333,3.03,182.53,182.47,3.24]
[1753038182533,3.03,182.53,182.48,4.28338227]
[1753038182729,5.477,182.51,182.47,5.4777]
[1753038182931,3.03,182.56,182.5,2.68070971]
[1753038183131,3.03,182.56,182.51,6.96197933]
[1753038183331,3.03,182.56,182.52,3.24]
[1753038183636,3.03,182.54,182.52,3.24]
[1753038183828,3.03,182.53,182.5,3.24]
[1753038184033,3.03,182.55,182.49,3.24]
[1753038184234,5.4762,182.53,182.49,5.92070971]
[1753038184436,5.4762,182.53,182.5,3.24]
[1753038184930,3.03,182.54,182.49,2.68070971]
[1753038185134,3.03,182.53,182.51,3.24]
[1753038185327,2.68070971,182.58,182.5,3.24]
[1753038185328,3.03,182.57,182.5,3.24]
[1753038186835,2.68070971,182.52,182.47,3.24]
[1753038187136,2.68070971,182.52,182.44,4.27476815]
[1753038187137,5.4781,182.47,182.45,3.24]
[1753038187331,3.03,182.47,182.45,3.24]
[1753038187732,5.4782,182.46,182.45,3.24]
[1753038188934,8.508,182.47,182.43,2.68070971]
[1753038189138,8.508,182.47,182.46,3.24]
[1753038190343,8.5083,182.46,182.45,3.24]
[1753038190548,2.68070971,182.5,182.45,3.24]
[1753038190549,3.03,182.48,182.45,3.24]
[1753038190840,3.03,182.48,182.43,3.24]
[1753038191036,3.03,182.47,182.42,2.68070971]
[1753038191241,3.03,182.47,182.38,101.0]
[1753038191242,3.03,182.49,182.43,3.24]
[1753038191444,3.03,182.47,182.43,3.24]
[1753038191744,2.68070971,182.48,182.43,3.24]
[1753038191745,8.5088,182.44,182.43,3.24]
[1753038191943,3.03,182.44,182.39,8.16080971]
[1753038192142,5.4794,182.42,182.41,3.24]
[1753038192534,3.03,182.44,182.38,2.68070971]
[1753038192741,5.4792,182.43,182.42,3.24]
[1753038193444,2.68070971,182.52,182.4,3.24]
[1753038193445,3.03,182.42,182.4,3.24]
[1753038193944,3.03,182.39,182.32,2.68070971]
[1753038194245,3.03,182.4,182.35,3.24]
[1753038194442,5.4809,182.38,182.36,2.27914929]
[1753038194643,5.4809,182.38,182.37,5.51914929]
[1753038194946,8.5109,182.38,182.37,3.24]
[1753038195739,8.5109,182.38,182.32,2.68070971]
[1753038195740,2.68070971,182.39,182.35,2.27578265]
[1753038196042,3.03,182.38,182.32,3.24]
[1753038196248,5.4815,182.36,182.33,2.27693377]
[1753038196547,3.03,182.36,182.35,3.24]
[1753038197139,5.4807,182.38,182.35,3.24]
[1753038197344,3.03,182.37,182.35,3.24]
[1753038197742,3.03,182.39,182.33,3.24]
[1753038198046,3.03,182.39,182.34,3.24]
[1753038198445,8.5104,182.39,182.36,3.24]
[1753038198645,8.5104,182.39,182.35,5.4812]
[1753038198646,8.5104,182.39,182.37,3.24]
[1753038199038,8.5106,182.38,182.37,3.24]
[1753038199447,3.03,182.38,182.37,3.24]
[1753038199843,3.03,182.4,182.33,2.68070971]
[1753038200043,3.03,182.4,182.36,3.24]
[1753038200238,3.03,182.4,182.37,3.24]
[1753038200442,3.03,182.39,182.37,3.24]
[1753038201145,112.1546,182.5,182.33,2.68070971]
[1753038201146,3.03,182.4,182.33,3.24]
[1753038201347,3.03,182.38,182.33,3.24]
[1753038201739,5.4816,182.35,182.33,3.24]
[1753038201944,8.5116,182.35,182.33,3.24]
[1753038202143,5.4821,182.34,182.31,3.24]
[1753038202347,2.68070971,182.4,182.31,2.68070971]
[1753038202553,3.03,182.39,182.32,3.24]
[1753038203144,3.03,182.39,182.33,2.68070971]
[1753038203345,8.5106,182.39,182.36,3.24]
[1753038203550,8.5106,182.39,182.37,3.24]
[1753038204752,5.4811,182.37,182.33,3.24]
[1753038205347,5.4811,182.37,182.33,5.4821]
[1753038205648,5.4807,182.38,182.35,3.24]
[1753038205848,8.5107,182.38,182.35,3.24]
[1753038206047,8.5107,182.38,182.32,2.68070971]
[1753038206351,8.5107,182.38,182.37,3.24]
[1753038206851,3.03,182.41,182.32,2.68070971]
[1753038207046,3.03,182.41,182.36,5.4811]
[1753038207247,3.03,182.41,182.37,3.24]
[1753038207451,5.4802,182.4,182.37,3.24]
[1753038207946,5.4802,182.4,182.36,5.4811]
[1753038208145,8.5202,182.4,182.38,3.12]
[1753038208346,5.4803,182.39,182.38,3.12]
[1753038209348,8.5207,182.38,182.36,3.12]
[1753038209952,8.5207,182.38,182.37,3.12]
[1753038210148,5.4807,182.38,182.37,3.12]
[1753038211848,5.4812,182.36,182.32,2.68070971]
[1753038212049,5.4812,182.36,182.35,3.12]
[1753038213149,5.4812,182.36,182.32,2.68070971]
[1753038213451,3.04,182.35,182.34,3.12]
[1753038213841,8.5215,182.35,182.34,3.12]
[1753038214551,5.4815,182.35,182.34,3.12]
[1753038215650,8.5213,182.36,182.35,3.12]
[1753038215848,3.04,182.38,182.35,3.12]
[1753038216048,3.04,182.4,182.35,3.12]
[1753038216246,3.04,182.42,182.38,3.12]
[1753038216446,3.87710126,182.41,182.37,2.68070971]
[1753038216746,3.04,182.41,182.4,3.12]
[1753038216951,3.85075756,182.41,182.38,3.12]
[1753038217250,3.04,182.45,182.4,3.12]
[1753038217451,3.85107677,182.44,182.4,3.12]
[1753038217650,2.68070971,182.5,182.42,3.12]
[1753038217852,3.04,182.49,182.42,3.12]
[1753038218055,8.5191,182.43,182.42,3.12]
[1753038218461,3.04,182.43,182.42,3.12]
[1753038218650,8.5189,182.44,182.42,3.12]
[1753038219455,5.4787,182.45,182.41,3.12]
[1753038220053,3.04,182.44,182.42,3.12]
[1753038220454,8.519,182.44,182.41,3.12]
[1753038220653,3.04,182.47,182.41,3.12]
[1753038221456,3.04,182.46,182.43,3.12]
[1753038221649,3.04,182.46,182.42,2.68070971]
[1753038221853,10.9533,182.52,182.46,3.12]
[1753038221854,5.4779,182.47,182.46,3.12]
[1753038222151,8.5179,182.47,182.46,3.12]
[1753038222862,3.04,182.47,182.44,3.12]
[1753038223053,3.04,182.46,182.44,3.12]
[1753038223356,8.5184,182.46,182.45,3.12]
[1753038223659,5.4784,182.46,182.45,3.12]
[1753038223956,8.5184,182.46,182.45,3.12]
[1753038224359,3.04,182.49,182.43,3.12]
[1753038224559,3.04,182.47,182.39,3.12]
[1753038224757,3.04,182.47,182.4,6.56072146]
[1753038224957,5.4796,182.42,182.39,3.12]
[1753038225153,5.4796,182.42,182.41,3.12]
[1753038225953,5.4796,182.42,182.41,7.39946591]
[1753038226158,5.4796,182.42,182.41,3.12]
[1753038226959,3.04,182.47,182.41,7.40265]
[1753038227161,3.04,182.47,182.42,6.96335971]
[1753038227358,3.04,182.47,182.43,4.28265]
[1753038227553,3.04,182.47,182.45,3.12]
[1753038227865,5.4783,182.46,182.45,3.12]
[1753038228053,8.5183,182.46,182.45,3.12]
[1753038229056,5.4787,182.45,182.4,2.68070971]
[1753038229255,5.4787,182.45,182.44,3.12]
[1753038230267,5.4787,182.45,182.44,7.40895666]
[1753038230462,5.4787,182.45,182.44,7.4089637]
[1753038230965,8.5184,182.46,182.45,3.12]
[1753038231165,5.4784,182.46,182.45,3.12]
[1753038231662,3.04,182.49,182.45,3.12]
[1753038232267,368.46,182.54,182.44,2.68070971]
[1753038232268,5.4773,182.5,182.47,3.12]
[1753038232572,3.04,182.51,182.47,3.12]
[1753038233867,5.4773,182.5,182.47,3.12]
[1753038234363,8.5169,182.51,182.47,8.5979]
[1753038234564,3.04,182.51,182.44,2.68070971]
[1753038234863,3.04,182.51,182.49,3.12]
[1753038235873,5.4772,182.5,182.49,3.12]
[1753038236265,8.5172,182.5,182.49,3.12]
[1753038236769,8.5169,182.51,182.44,2.68070971]
[1753038236968,8.5169,182.51,182.5,3.12]
[1753038237165,5.4769,182.51,182.5,3.12]
[1753038237368,2.68070971,182.53,182.47,3.12]
[1753038237572,2.68070971,182.51,182.46,3.12]
[1753038237766,2.68070971,182.51,182.47,3.12]
[1753038237968,8.5175,182.49,182.47,3.12]
[1753038238174,3.04,182.49,182.47,3.12]
[1753038238364,3.04,182.49,182.48,3.2]
[1753038238365,8.5175,182.49,182.48,3.2]
[1753038239267,5.4775,182.49,182.48,3.2]
[1753038239472,3.04,182.51,182.48,3.2]
[1753038239672,3.04,182.51,182.46,3.2]
[1753038239875,5.4775,182.49,182.46,3.2]
[1753038240068,3.04,182.5,182.46,3.2]
[1753038240671,5.4774,182.49,182.46,3.2]
[1753038240869,2.68070971,182.49,182.39,4.47382651]
[1753038241063,2.68070971,182.49,182.41,3.2]
[1753038241264,5.4782,182.46,182.42,7.78546464]
[1753038241470,3.04,182.48,182.44,3.2]
[1753038241671,3.04,182.5,182.44,3.2]
[1753038242068,3.04,182.52,182.47,3.2]
[1753038242267,3.04,182.56,182.5,2.68070971]
[1753038242573,5.4754,182.56,182.53,3.2]
[1753038242769,3.04,182.58,182.53,3.2]
[1753038242974,3.04,182.62,182.55,3.2]
[1753038243782,5.4745,182.59,182.55,3.2]
[1753038244278,5.4741,182.6,182.56,3.2]
[1753038244478,3.04,182.62,182.57,3.2]
[1753038245371,3.04,182.61,182.54,3.2]
[1753038245773,469.28,182.69,182.52,2.68070971]
[1753038245774,2.68070971,182.6,182.52,2.68070971]
[1753038245969,3.04,182.59,182.53,3.2]
[1753038246382,8.5154,182.56,182.54,3.2]
[1753038247178,5.4755,182.55,182.54,3.2]
[1753038247478,8.5155,182.55,182.54,3.2]
[1753038247680,5.4759,182.54,182.52,3.2]
[1753038247880,5.4759,182.54,182.53,3.2]
[1753038248876,3.04,182.55,182.51,2.68070971]
[1753038248877,8.5156,182.55,182.54,3.2]
[1753038249574,5.4759,182.54,182.52,3.2]
[1753038249780,5.4759,182.54,182.53,3.2]
[1753038251778,2.68070971,182.59,182.52,3.2]
[1753038252082,10.945,182.66,182.52,3.2]
[1753038252083,2.68070971,182.6,182.52,3.2]
[1753038252282,3.03,182.56,182.52,3.2]
[1753038252481,5.4756,182.55,182.52,3.2]
[1753038253075,3.03,182.56,182.52,3.2]
[1753038253273,3.03,182.56,182.51,2.68070971]
[1753038253478,3.03,182.57,182.53,3.2]
[1753038254179,5.477,182.51,182.45,2.68070971]
[1753038254386,8.507,182.51,182.47,3.2]
[1753038254784,5.4764,182.53,182.48,3.2]
[1753038254989,3.03,182.55,182.48,3.2]
[1753038255385,5.4762,182.53,182.48,5.4774]
[1753038255586,3.03,182.55,182.49,3.2]
[1753038256688,3.03,182.52,182.5,3.2]
[1753038256989,5.476,182.54,182.51,3.2]
[1753038257189,2.68070971,182.57,182.51,3.2]
[1753038257488,3.03,182.55,182.51,3.2]
[1753038258077,3.03,182.56,182.5,3.2]
[1753038258485,3.03,182.56,182.47,2.68070971]
[1753038258486,5.4767,182.52,182.51,3.2]
[1753038258785,8.5067,182.52,182.51,3.2]
[1753038258986,2.68070971,182.53,182.48,3.2]
[1753038259182,3.03,182.52,182.48,3.2]
[1753038259892,5.4774,182.49,182.48,3.2]
[1753038261484,3.03,182.6,182.48,3.2]
[1753038261690,2.68070971,182.55,182.48,3.2]
[1753038261882,3.03,182.56,182.49,2.68070971]
[1753038262085,3.03,182.56,182.5,3.2]
[1753038262386,5.4756,182.55,182.51,3.2]
[1753038262586,3.03,182.56,182.51,3.2]
[1753038263286,5.476,182.54,182.51,3.2]
[1753038264386,5.4761,182.53,182.51,3.2]
[1753038264886,5.4761,182.53,182.5,3.2]
[1753038266194,5.4759,182.54,182.5,3.2]
[1753038266990,5.4762,182.53,182.5,3.2]
[1753038267189,3.03,182.55,182.5,3.2]
[1753038267395,2.68070971,182.57,182.5,3.2]
[1753038267596,5.4763,182.53,182.5,3.2]
[1753038268888,5.4759,182.54,182.5,3.2]
[1753038269094,5.4759,182.54,182.51,2.99]
[1753038269688,5.4762,182.53,182.51,2.99]
[1753038269891,3.04,182.56,182.51,2.99]
[1753038270295,5.4761,182.54,182.51,2.99]
[1753038271096,5.4761,182.53,182.51,2.99]
[1753038272096,5.4759,182.54,182.51,2.99]
[1753038272294,3.04,182.56,182.51,5.67070971]
[1753038272489,3.04,182.56,182.51,2.68070971]
[1753038272696,5.4757,182.55,182.52,2.99]
[1753038272891,3.04,182.56,182.52,2.99]
[1753038273995,5.476,182.54,182.52,2.99]
[1753038275999,5.4756,182.55,182.52,2.99]
[1753038276405,3.04,182.58,182.52,2.99]
[1753038276604,5.4757,182.55,182.52,2.99]
[1753038277002,3.04,182.56,182.52,2.99]
[1753038277405,5.4756,182.55,182.52,2.99]
[1753038277599,3.04,182.56,182.53,2.30474519]
[1753038277800,3.04,182.56,182.52,2.99]
[1753038278001,3.04,182.56,182.54,2.99]
[1753038278201,5.4759,182.54,182.51,8.15720971]
[1753038278398,5.4759,182.54,182.52,2.30493021]
[1753038278597,5.4759,182.54,182.51,8.15720971]
[1753038278598,5.4759,182.54,182.53,2.30493021]
[1753038278801,5.4759,182.54,182.53,5.29493021]
[1753038278997,5.4759,182.54,182.53,2.99]
[1753038279202,5.4756,182.55,182.53,5.29525074]
[1753038279404,5.4756,182.55,182.54,2.99]
[1753038280306,5.4756,182.55,182.54,5.29499309]
[1753038280908,2.68070971,182.64,182.55,2.99]
[1753038281208,3.04,182.63,182.57,2.99]
[1753038281608,3.04,182.62,182.59,2.99]
[1753038282006,5.474,182.6,182.59,2.99]
[1753038282805,5.4738,182.61,182.59,2.99]
[1753038284412,5.4739,182.61,182.59,2.99]
[1753038285504,3.04,182.62,182.59,2.99]
[1753038286714,5.474,182.61,182.59,2.99]
[1753038288007,8.514,182.61,182.59,2.99]
[1753038288211,5.474,182.61,182.59,2.99]
[1753038288416,5.474,182.6,182.59,2.99]
[1753038288810,2.68070971,182.62,182.56,2.99]
[1753038289017,8.5149,182.57,182.56,2.99]
[1753038289616,5.4748,182.58,182.56,5.29439323]
[1753038289818,5.4748,182.58,182.57,2.99]
[1753038290213,8.5148,182.58,182.57,2.99]
[1753038291714,2.68070971,182.62,182.55,2.99]
[1753038291921,3.04,182.59,182.53,2.99]
[1753038292320,5.4758,182.54,182.53,2.99]
[1753038292618,8.5158,182.54,182.53,2.99]
[1753038292816,8.5158,182.54,182.5,126.91569444]
[1753038293119,10.9461,182.64,182.5,126.91569444]
[1753038293120,3.04,182.55,182.5,126.91569444]
[1753038293717,3.04,182.55,182.5,129.90569444]
[1753038294724,3.04,182.55,182.5,126.91569444]
[1753038294924,8.5167,182.51,182.5,129.90569444]
[1753038295124,8.5167,182.51,182.5,132.21204807]
[1753038295323,5.4767,182.51,182.5,132.21204807]
[1753038297227,8.5167,182.51,182.5,132.21204807]
[1753038297626,8.5167,182.51,182.5,129.22204807]
[1753038299333,8.5167,182.51,182.5,126.91569444]
[1753038300427,5.4765,182.52,182.51,3.0]
[1753038301023,8.4965,182.52,182.51,3.0]
[1753038301326,8.4958,182.55,182.51,3.0]
[1753038301530,3.02,182.57,182.52,3.0]
[1753038301731,3.02,182.57,182.53,2.30084075]
[1753038301931,3.02,182.57,182.52,3.0]
[1753038302133,3.02,182.57,182.53,2.30061141]
[1753038302432,3.02,182.57,182.54,3.0]
[1753038303024,3.02,182.57,182.52,3.0]
[1753038303624,8.496,182.54,182.52,3.0]
[1753038303928,8.496,182.54,182.53,3.0]
[1753038304228,2.68070971,182.54,182.5,126.91569444]
[1753038304427,3.02,182.51,182.41,7.15453622]
[1753038304627,3.02,182.46,182.45,3.0]
[1753038304829,2.68070971,182.48,182.43,3.0]
[1753038305227,5.4788,182.44,182.43,3.0]
[1753038305624,8.4993,182.43,182.41,103.84]
[1753038305830,8.4993,182.43,182.41,3.0]
[1753038306026,8.4993,182.43,182.42,3.0]
[1753038306231,8.4993,182.43,182.38,5.4806]
[1753038306232,5.48,182.41,182.38,3.0]
[1753038306534,3.02,182.41,182.39,9.62288304]
[1753038306735,3.02,182.41,182.4,6.62288304]
[1753038306932,8.4998,182.41,182.4,9.62288304]
[1753038307132,3.02,182.41,182.38,3.0]
[1753038307533,3.02,182.41,182.34,3.0]
[1753038307734,3.02,182.41,182.35,9.62255545]
[1753038308040,5.4807,182.38,182.37,3.0]
[1753038308239,8.5007,182.38,182.37,5.30337856]
[1753038308434,5.4807,182.38,182.37,5.30337856]
[1753038308739,3.02,182.42,182.37,3.0]
[1753038308936,6.6367031,182.41,182.37,3.0]
[1753038309136,3.02,182.41,182.37,3.0]
[1753038309332,2.68070971,182.43,182.37,3.0]
[1753038309639,3.02,182.48,182.41,2.68070971]
[1753038309838,2.68070971,182.49,182.41,2.68070971]
[1753038309839,6.63322895,182.47,182.42,3.0]
[1753038310033,2.68070971,182.49,182.42,3.0]
[1753038310236,5.4787,182.45,182.42,3.0]
[1753038310434,3.02,182.46,182.42,3.0]
[1753038311535,3.02,182.46,182.43,3.0]
[1753038311731,3.02,182.48,182.4,8.16070971]
[1753038311934,3.7442157,182.47,182.41,3.0]
[1753038312230,3.02,182.46,182.41,3.0]
[1753038312429,3.02,182.46,182.41,5.4797]
[1753038312642,3.02,182.46,182.42,3.0]
[1753038313040,8.4985,182.46,182.42,3.0]
[1753038313237,5.4785,182.46,182.42,3.0]
[1753038313431,3.02,182.48,182.42,3.0]
[1753038313642,2.68070971,182.49,182.42,3.0]
[1753038313643,3.02,182.47,182.42,3.0]
[1753038314335,485.49,182.56,182.46,3.0]
[1753038314336,3.02,182.54,182.46,3.0]
[1753038314545,3.02,182.53,182.46,3.0]
[1753038314934,5.4773,182.5,182.46,3.0]
[1753038317944,5.4773,182.5,182.47,5.68070971]
[1753038318143,5.4768,182.51,182.48,3.0]
[1753038318744,5.4765,182.52,182.48,3.0]
[1753038319146,5.4765,182.52,182.49,2.68070971]
[1753038319446,5.4765,182.52,182.5,3.0]
[1753038319644,3.02,182.53,182.46,3.0]
[1753038320044,5.4778,182.48,182.46,3.0]
[1753038320649,3.02,182.52,182.46,5.68070971]
[1753038320850,3.02,182.52,182.48,2.68070971]